lending/lending_fUSD_20251106
["ID","MTS","AMOUNT","RATE_DAILY","PERIOD"]
[393317325,1762462241791,-553.13,0.00017999,2]
[393317326,1762462241800,-553.13,0.00017999,2]
[393317327,1762462241810,-553.13,0.00017999,2]
[393317328,1762462241819,-553.13,0.00017999,2]
[393317329,1762462241831,-553.13,0.00017999,2]
[393317330,1762462241840,-553.13,0.00017999,2]
[393317331,1762462241849,-553.13,0.00017999,2]
[393317332,1762462241858,-553.18248761,0.00017999,2]
[393317333,1762462241867,-516.69,0.00017999,2]
[393317334,1762462241877,-516.69,0.00017999,2]
[393317335,1762462241886,-516.69,0.00017999,2]
[393317336,1762462241895,-516.69,0.00017999,2]
[393317337,1762462241905,-516.69,0.00017999,2]
[393317338,1762462241915,-516.69,0.00017999,2]
[393317339,1762462241924,-516.69,0.00017999,2]
[393317340,1762462241933,-516.69,0.00017999,2]
[393317341,1762462241942,-516.69,0.00017999,2]
[393317342,1762462241951,-516.69,0.00017999,2]
[393317343,1762462241960,-516.69,0.00017999,2]
[393317344,1762462241969,-516.69,0.00017999,2]
[393317345,1762462241978,-516.69,0.00017999,2]
[393317346,1762462241987,-516.69,0.00017999,2]
[393317347,1762462241997,-516.69,0.00017999,2]
[393317348,1762462242006,-516.69,0.00017999,2]
[393317349,1762462242015,-516.69,0.00017999,2]
[393317350,1762462242024,-516.73372178,0.00017999,2]
[393317351,1762462242033,-62575.39492877,0.00018,2]
[393317352,1762462242047,-654.45,0.00018,2]
[393317353,1762462242062,-4119.82616794,0.00018,2]
[393317354,1762462242072,-558.89350208,0.00018,2]
[393317355,1762462242083,-445.55727261,0.00018,2]
[393317356,1762462242101,-4829.72701946,0.00018,2]
[393317357,1762462242111,-10283.65646986,0.00018,2]
[393317358,1762462242122,-2639.93182588,0.00018,2]
[393317359,1762462242132,-788.03356784,0.00018,2]
[393317380,1762462242702,-33.80952502,0.00018,2]
[393317381,1762462243926,-176.91,0.00017682,2]
[393317382,1762462243935,-20521.10759447,0.00018,2]
[393317383,1762462243947,-983.99746187,0.00018,2]
[393317384,1762462243958,-527.50353436,0.00018,2]
[393317385,1762462243997,-283.69359196,0.00018,2]
[393317386,1762462244011,-1215.909,0.00018,2]
[393317387,1762462244023,-7193.05797718,0.00018,2]
[393317399,1762462245708,-174.36793026,0.000179,2]
[393317400,1762462245718,-3628.56006974,0.00018,2]
[393317406,1762462245764,-1000.4995,0.00018,2]
[393317408,1762462245775,-649.87999794,0.00018,2]
[393317410,1762462245792,-967.1442304,0.00018,2]
[393317411,1762462245825,-724.8449955,0.00018,2]
[393317412,1762462245838,-640.45025,0.00018,2]
[393317413,1762462246151,-274.85000098,0.00018,2]
[393317414,1762462246163,-1999.99999975,0.00018,2]
[393317415,1762462246175,-271.65592414,0.00018,2]
[393317416,1762462246189,-2141.18102479,0.00018,2]
[393317418,1762462494097,1000.0,0.00038792,30]
[393317419,1762462497522,472.0,0.00038792,30]
[393317460,1762463431749,-166.66,0.0001546,2]
[393317461,1762463431759,-166.66,0.00015785,2]
[393317462,1762463431768,-166.66,0.00016111,2]
[393317463,1762463431777,-182.49,0.00016301,2]
[393317464,1762463431786,-150.0,0.00016352,2]
[393317465,1762463431795,-166.66,0.00016436,2]
[393317466,1762463431804,-300.0,0.00016452,2]
[393317467,1762463431813,-65.58260208,0.00016553,2]
[393317468,1762463431913,-134.41739792,0.00016553,2]
[393317469,1762463431923,-250.69,0.00016649,2]
[393317470,1762463431932,-999.0,0.00016734,3]
[393317471,1762463431942,-166.66,0.00016762,2]
[393317472,1762463431953,-1231.0,0.00016902,2]
[393317473,1762463431963,-300.0,0.0001691,2]
[393317475,1762463431972,-1200.0,0.0001691,2]
[393317477,1762463431981,-300.0,0.0001691,2]
[393317478,1762463431990,-5888.0,0.00016932,2]
[393317479,1762463431999,-175.22,0.0001698,2]
[393317480,1762463432009,-250.0,0.00017,2]
[393317481,1762463432018,-300.0,0.00017006,2]
[393317482,1762463432028,-300.0,0.00017006,2]
[393317483,1762463432037,-151.0,0.00017008,2]
[393317484,1762463432046,-170.39921442,0.0001701,2]
[393317485,1762463432055,-500.0,0.0001701,2]
[393317486,1762463432064,-500.0,0.0001701,2]
[393317487,1762463432074,-116587.1359615,0.00017011,2]
[393317488,1762463437571,-651.18200783,0.00016911,2]
[393317489,1762463437580,-6205.00914198,0.00017011,2]
[393317490,1762463437627,-259.13839387,0.00017011,2]
[393317491,1762463437736,-12989.91412174,0.00017011,2]
[393317492,1762463437793,-1090.66059968,0.00017011,2]
[393317514,1762463444669,-147.46265596,0.00017011,2]
[393317515,1762463444689,-477.80224249,0.00017011,2]
[393317516,1762463444808,-282242.87688278,0.00017011,2]
[393317517,1762463444818,-1000.0,0.00017011,2]
[393317518,1762463444829,-651.18200783,0.00017021,2]
[393317519,1762463444838,-500.0,0.00017073,2]
[393317520,1762463444848,-500.0,0.00017073,2]
[393317521,1762463444859,-500.0,0.00017073,2]
[393317522,1762463444868,-166.66,0.00017087,2]
[393317523,1762463444877,-500.0,0.0001711,2]
[393317524,1762463444887,-500.0,0.00017123,2]
[393317525,1762463444896,-1231.0,0.00017219,2]
[393317526,1762463444906,-168.0,0.00017297,2]
[393317527,1762463444915,-1231.0,0.00017441,2]
[393317528,1762463444924,-6018.71122247,0.0001746,2]
[393317529,1762463444934,-500.0,0.0001757,2]
[393317530,1762463444944,-6018.71122247,0.0001757,2]
[393317531,1762463444954,-477.87911524,0.00017573,2]
[393317532,1762463444964,-500.0,0.00017587,2]
[393317533,1762463444973,-500.0,0.00017588,2]
[393317534,1762463444982,-554.0,0.00017616,2]
[393317535,1762463444992,-1000.0,0.00017621,2]
[393317536,1762463445001,-201.31080728,0.00017621,2]
[393317537,1762463445011,-893.73840764,0.00017632,2]
[393317538,1762463445020,-6018.71122247,0.0001768,2]
[393317539,1762463445031,-1000.0,0.000177,2]
[393317540,1762463445040,-221.80400124,0.00017709,2]
[393317541,1762463445049,-371.6420851,0.00017779,7]
[393317542,1762463445059,-6018.71122247,0.0001779,2]
[393317543,1762463445079,-4127.4107,0.000178,2]
[393317544,1762463445097,-1815.328,0.00017865,2]
[393317545,1762463445107,-923.45654704,0.000179,3]
[393317546,1762463445118,-6018.71122247,0.000179,2]
[393317547,1762463445127,-5564.38403346,0.000179,2]
[393317548,1762463445137,-5800.0,0.00017932,2]
[393317549,1762463445147,-5800.0,0.00017941,2]
[393317550,1762463445157,-5800.0,0.00017949,2]
[393317551,1762463445167,-500.0,0.00017973,2]
[393317552,1762463445176,-150.00946095,0.00017973,2]
[393317553,1762463445186,-502.99169926,0.00017973,2]
[393317554,1762463445196,-155.04743738,0.00017973,2]
[393317555,1762463445205,-500.0,0.00017973,2]
[393317556,1762463445217,-500.0,0.00017973,2]
[393317557,1762463445226,-500.0,0.00017973,2]
[393317558,1762463445236,-500.0,0.00017973,2]
[393317559,1762463445246,-500.0,0.00017973,2]
[393317560,1762463445255,-205.18594207,0.00017973,2]
[393317561,1762463445265,-500.0,0.00017973,2]
[393317562,1762463445274,-500.0,0.00017973,2]
[393317563,1762463445284,-500.0,0.00017973,2]
[393317564,1762463445294,-500.0,0.00017973,2]
[393317565,1762463445303,-514.51741513,0.00017973,2]
[393317566,1762463445313,-500.0,0.00017973,2]
[393317567,1762463445323,-500.0,0.00017973,2]
[393317568,1762463445332,-500.0,0.00017973,2]
[393317569,1762463445342,-500.27797312,0.00017973,2]
[393317570,1762463445352,-500.0,0.00017973,2]
[393317571,1762463445362,-500.0,0.00017973,2]
[393317572,1762463445371,-351.16553114,0.00017973,2]
[393317573,1762463445381,-500.0,0.00017973,2]
[393317574,1762463445390,-500.0,0.00017973,2]
[393317575,1762463445399,-500.0,0.00017973,2]
[393317576,1762463445409,-187.6283326,0.00017978,2]
[393317577,1762463445418,-199.0,0.00017978,2]
[393317578,1762463445428,-300.0,0.00017987,2]
[393317579,1762463445438,-5800.0,0.0001799,2]
[393317580,1762463445446,-500.0,0.00017996,2]
[393317581,1762463445456,-500.0,0.00017996,2]
[393317582,1762463445471,-500.0,0.00017996,2]
[393317583,1762463445480,-500.0,0.00017996,2]
[393317584,1762463445489,-500.0,0.00017998,2]
[393317585,1762463445499,-11335.0393256,0.00017999,2]
[393317587,1762463445509,-500.0,0.00017999,2]
[393317589,1762463445518,-500.0,0.00017999,2]
[393317590,1762463445528,-500.0,0.00017999,2]
[393317591,1762463445538,-500.0,0.00017999,2]
[393317592,1762463445552,-531.35248761,0.00017999,2]
[393317594,1762463445561,-15922.5068302,0.00017999,2]
[393317595,1762463445570,-212.916,0.00017999,2]
[393317596,1762463445580,-942.96105378,0.00017999,5]
[393317597,1762463445590,-500.0,0.00017999,2]
[393317598,1762463445599,-500.0,0.00017999,2]
[393317599,1762463445609,-500.0,0.00017999,2]
[393317600,1762463445619,-500.0,0.00017999,2]
[393317601,1762463445628,-500.0,0.00017999,2]
[393317602,1762463445637,-500.0,0.00017999,2]
[393317603,1762463445646,-500.0,0.00017999,2]
[393317604,1762463445655,-500.0,0.00017999,2]
[393317605,1762463445664,-500.0,0.00017999,2]
[393317606,1762463445673,-500.0,0.00017999,2]
[393317607,1762463445682,-500.0,0.00017999,2]
[393317608,1762463445692,-500.0,0.00017999,2]
[393317609,1762463445701,-500.0,0.00017999,2]
[393317610,1762463445710,-323.89892362,0.00017999,2]
[393317611,1762463445722,-5903.8270235,0.00017999,2]
[393317612,1762463445731,-399.17554175,0.00017999,2]
[393317613,1762463445740,-355.86016182,0.00017999,2]
[393317614,1762463445749,-187595.8233965,0.00017999,2]
[393317615,1762463445758,-284.48434783,0.00017999,2]
[393317616,1762463445768,-5800.0,0.00017999,2]
[393317617,1762463445777,-313.66,0.00017999,2]
[393317618,1762463445787,-150.0772445,0.00017999,2]
[393317619,1762463445795,-500.0,0.00017999,2]
[393317620,1762463445805,-500.0,0.00017999,2]
[393317621,1762463445814,-500.0,0.00017999,2]
[393317622,1762463445823,-500.0,0.00017999,2]
[393317623,1762463445832,-500.0,0.00017999,2]
[393317624,1762463445841,-500.0,0.00017999,2]
[393317625,1762463445850,-500.0,0.00017999,2]
[393317626,1762463445862,-500.0,0.00017999,2]
[393317627,1762463445871,-500.0,0.00017999,2]
[393317628,1762463445880,-500.0,0.00017999,2]
[393317629,1762463445889,-500.0,0.00017999,2]
[393317630,1762463445899,-500.0,0.00017999,2]
[393317631,1762463445907,-500.0,0.00017999,2]
[393317632,1762463445916,-500.0,0.00017999,2]
[393317633,1762463445926,-500.0,0.00017999,2]
[393317634,1762463445935,-500.0,0.00017999,2]
[393317635,1762463445945,-300.46372178,0.00017999,2]
[393317636,1762463445956,-3263.0,0.00018,2]
[393317637,1762463445966,-193414.27915474,0.00018,2]
[393317638,1762463445983,-579086.12186082,0.00018,2]
[393317639,1762463446042,-651.18200783,0.00017131,2]
[393317640,1762463446051,-1071.91349097,0.00018,2]
[393317648,1762463498958,-713.06368673,0.0002,30]
[393317649,1762463498989,-23301.60087234,0.000209,30]
[393317650,1762463499016,-477.87911524,0.000209,30]
[393317651,1762463499287,-165.37256016,0.000248,30]
[393317652,1762463499320,-300.000008,0.00027397,31]
[393317653,1762463499348,-1607.93,0.00027671,30]
[393317654,1762463499376,-191.86,0.00028569,30]
[393317655,1762463499405,-537.55096685,0.0002987,30]
[393317656,1762463499433,-41243.41511656,0.000299,30]
[393317657,1762463499464,-477.87911524,0.0003,30]
[393317658,1762463499494,-182.01477032,0.0003013,30]
[393317659,1762463499528,-469.19,0.000303,30]
[393317660,1762463499559,-315.58,0.00030685,30]
[393317661,1762463499586,-191.86,0.00030718,30]
[393317662,1762463499615,-211.0,0.0003084,30]
[393317663,1762463499657,-469.19,0.000311,30]
[393317664,1762463499691,-200.0,0.00032,120]
[393317665,1762463499721,-469.19,0.000323,30]
[393317666,1762463499752,-211.0,0.0003286,30]
[393317667,1762463499794,-191.86,0.00032867,30]
[393317668,1762463499830,-500.0,0.00032876,120]
[393317669,1762463499859,-513.25043016,0.00032876,120]
[393317670,1762463499886,-500.0,0.00032876,120]
[393317671,1762463499914,-500.0,0.00032876,120]
[393317672,1762463499941,-576.85542387,0.00032876,120]
[393317673,1762463499976,-999.0,0.00032876,120]
[393317674,1762463500014,-212.97,0.0003288,30]
[393317675,1762463500043,-268.2759612,0.0003288,30]
[393317676,1762463500080,-268.2759612,0.0003288,30]
[393317677,1762463500114,-268.2759612,0.0003288,30]
[393317678,1762463500145,-268.2759612,0.0003288,30]
[393317679,1762463500175,-268.2759612,0.0003288,30]
[393317680,1762463500204,-268.2759612,0.0003288,30]
[393317681,1762463500234,-268.2759612,0.0003288,30]
[393317682,1762463500264,-268.2759612,0.0003288,30]
[393317683,1762463500293,-268.2759612,0.0003288,30]
[393317684,1762463500323,-268.2759612,0.0003288,30]
[393317685,1762463500354,-268.2759612,0.0003288,30]
[393317686,1762463500386,-268.2759612,0.0003288,30]
[393317687,1762463500416,-268.2759612,0.0003288,30]
[393317688,1762463500446,-268.2759612,0.0003288,30]
[393317689,1762463500476,-268.2759612,0.0003288,30]
[393317690,1762463500509,-268.2759612,0.0003288,30]
[393317691,1762463500538,-268.2759612,0.0003288,30]
[393317692,1762463500568,-268.2759612,0.0003288,30]
[393317693,1762463500594,-268.2759612,0.0003288,30]
[393317694,1762463500622,-268.27,0.0003288,30]
[393317695,1762463500657,-625.9772428,0.0003288,30]
[393317696,1762463500685,-625.9772428,0.0003288,30]
[393317697,1762463500712,-625.9772428,0.0003288,30]
[393317698,1762463500740,-625.9772428,0.0003288,30]
[393317699,1762463500767,-625.9772428,0.0003288,30]
[393317700,1762463500794,-625.9772428,0.0003288,30]
[393317701,1762463500821,-625.9772428,0.0003288,30]
[393317702,1762463500848,-625.9772428,0.0003288,30]
[393317703,1762463500879,-625.9772428,0.0003288,30]
[393317704,1762463500906,-625.9772428,0.0003288,30]
[393317705,1762463500934,-625.9772428,0.0003288,30]
[393317706,1762463500961,-625.9772428,0.0003288,30]
[393317707,1762463500988,-625.9772428,0.0003288,30]
[393317708,1762463501016,-625.9772428,0.0003288,30]
[393317709,1762463501044,-625.9772428,0.0003288,30]
[393317710,1762463501071,-625.9772428,0.0003288,30]
[393317711,1762463501098,-625.9772428,0.0003288,30]
[393317712,1762463501128,-625.9772428,0.0003288,30]
[393317713,1762463501155,-625.9772428,0.0003288,30]
[393317714,1762463501181,-625.97,0.0003288,30]
[393317715,1762463501212,-2000.0,0.00033335,120]
[393317716,1762463501240,-469.19,0.000334,30]
[393317717,1762463501275,-300.0,0.00034,120]
[393317718,1762463501316,-469.19,0.000345,30]
[393317719,1762463501354,-1607.93,0.00034867,30]
[393317720,1762463501385,-211.0,0.0003488,30]
[393317721,1762463501418,-1993.96473859,0.00034911,30]
[393317722,1762463501452,-1421.10574742,0.00034911,30]
[393317723,1762463501486,-1000.0,0.00034911,30]
[393317724,1762463501516,-1000.0,0.00034911,30]
[393317725,1762463501549,-1245.30599484,0.00034911,30]
[393317726,1762463501586,-1000.0,0.00034911,30]
[393317727,1762463501618,-1000.0,0.00034911,30]
[393317728,1762463501651,-1000.0,0.00034911,30]
[393317729,1762463501691,-191.86,0.00035016,60]
[393317730,1762463501727,-2000.0,0.00035342,120]
[393317731,1762463501764,-999.0,0.00035616,120]
[393317732,1762463501799,-151.0,0.00035616,31]
[393317733,1762463501832,-151.0,0.00035616,31]
[393317734,1762463501870,-151.0,0.00035616,31]
[393317735,1762463501905,-156.864012,0.00035616,31]
[393317736,1762463501936,-151.0,0.00035616,31]
[393317737,1762463501966,-156.242591,0.00035768,30]
[393317738,1762463502000,-300.0,0.00036,120]
[393317739,1762463502033,-402.25018035,0.000365,120]
[393317740,1762463502061,-306.67959943,0.000368,120]
[393317741,1762463502093,-3018.51488,0.00036887,30]
[393317742,1762463502125,-211.0,0.0003689,30]
[393317743,1762463502158,-191.86,0.00037166,60]
[393317744,1762463502191,-2000.0,0.00037348,120]
[393317745,1762463502228,-150.0,0.00037549,120]
[393317746,1762463502262,-150.0,0.00037742,120]
[393317747,1762463502295,-500.0,0.000378,30]
[393317748,1762463502326,-500.0,0.000378,30]
[393317749,1762463502358,-500.0,0.000378,30]
[393317750,1762463502391,-300.0,0.00038,120]
[393317751,1762463502422,-2811.55811118,0.00038,120]
[393317752,1762463502454,-3269.86408873,0.00038,120]
[393317753,1762463502485,-500.0,0.00038074,30]
[393317754,1762463502515,-706.02,0.00038074,30]
[393317755,1762463502546,-214.96687417,0.000381,33]
[393317756,1762463502582,-213.86543034,0.00038241,31]
[393317757,1762463502614,-501.61644277,0.000383,30]
[393317758,1762463502647,-500.0,0.00038348,30]
[393317759,1762463502681,-999.0,0.00038356,120]
[393317760,1762463502711,-613.67659826,0.0003838,120]
[393317761,1762463502742,-2000.0,0.000385,120]
[393317762,1762463502774,-500.0,0.00038622,30]
[393317763,1762463502805,-1889.72474743,0.000387,120]
[393317764,1762463502835,-728.70533751,0.000387,120]
[393317765,1762463502864,-150.0,0.000387,60]
[393317766,1762463502895,-666.49941242,0.00038759,30]
[393317767,1762463502926,-150.05,0.00038768,30]
[393317768,1762463502957,-751.3644216,0.0003877,30]
[393317769,1762463502990,-339.66945016,0.00038772,30]
[393317770,1762463503035,-151.1,0.00038792,30]
[393317771,1762463503067,-497.81458398,0.00038798,30]
[393317772,1762463503097,-1842.8,0.000388,120]
[393317773,1762463503129,-604194.57,0.00038812,120]
[393317774,1762463503161,-500.0,0.00038831,30]
[393317775,1762463503190,-500.0,0.00038831,30]
[393317776,1762463503220,-500.0,0.00038831,30]
[393317777,1762463503251,-500.0,0.00038831,30]
[393317778,1762463503282,-500.0,0.00038831,30]
[393317779,1762463503310,-500.0,0.00038831,30]
[393317780,1762463503337,-500.0,0.00038831,30]
[393317781,1762463503363,-579.92397617,0.00038831,30]
[393317782,1762463503390,-1809.6317,0.00038888,30]
[393317783,1762463503417,-500.0,0.00038896,30]
[393317784,1762463503445,-211.0,0.0003891,30]
[393317785,1762463503472,-183.0,0.00038915,30]
[393317786,1762463503499,-159.24238961,0.00039,30]
[393317787,1762463503776,-1261.76019858,0.00039,120]
[393317788,1762463503826,-469.19,0.00039,30]
[393317789,1762463503855,-500.0,0.0003917,30]
[393317790,1762463503884,-191.86,0.00039315,60]
[393317791,1762463503910,-2000.0,0.00039355,120]
[393317792,1762463503937,-159.51225002,0.00039397,30]
[393317793,1762463503965,-500.0,0.00039444,30]
[393317794,1762463503993,-159.51225002,0.00039562,30]
[393317795,1762463504021,-500.0,0.00039718,30]
[393317796,1762463504050,-159.51225002,0.00039726,30]
[393317797,1762463504078,-20000.0,0.000399,120]
[393317798,1762463504106,-159.51225002,0.00039918,30]
[393317799,1762463504134,-446.67197777,0.00039986,90]
[393317800,1762463504163,-500.0,0.00039992,30]
[393317801,1762463504192,-400.0,0.0004,120]
[393317802,1762463504220,-293.6891876,0.0004,120]
[393317803,1762463504248,-1550.07818469,0.0004,120]
[393317804,1762463504276,-426.75523142,0.0004,120]
[393317805,1762463504304,-3526.71,0.0004,30]
[393317806,1762463504331,-500.0,0.0004,120]
[393317807,1762463504357,-500.0,0.0004,120]
[393317808,1762463504385,-477.87911524,0.0004,120]
[393317809,1762463504412,-477.87911524,0.0004,30]
[393317810,1762463504439,-1379.71,0.0004,120]
[393317811,1762463504466,-2000.0,0.0004,120]
[393317812,1762463504492,-159.51225002,0.00040082,30]
[393317813,1762463504519,-159.51225002,0.00040247,30]
[393317814,1762463504545,-500.0,0.00040266,30]
[393317815,1762463504577,-152.0,0.00040389,30]
[393317816,1762463504604,-159.51225002,0.00040438,30]
[393317817,1762463504634,-500.0,0.0004054,30]
[393317818,1762463504661,-159.51225002,0.00040603,30]
[393317819,1762463504690,-150.0,0.0004065,120]
[393317820,1762463504717,-159.51225002,0.00040767,30]
[393317821,1762463504748,-1815.328,0.00040899,59]
[393317822,1762463504775,-20000.0,0.000409,120]
[393317823,1762463504802,-211.0,0.0004093,30]
[393317824,1762463504830,-159.51225002,0.00040959,30]
[393317825,1762463504858,-999.0,0.00041095,120]
[393317826,1762463504885,-50000.0,0.00041096,120]
[393317827,1762463504911,-327.38,0.00041096,120]
[393317828,1762463504938,-159.51225002,0.00041123,30]
[393317829,1762463504965,-477.87911524,0.000412,120]
[393317830,1762463504992,-2000.0,0.00041362,120]
[393317831,1762463505020,-191.86,0.00041464,60]
[393317832,1762463505046,-150.0,0.00041644,30]
[393317833,1762463505074,-150.0,0.00041644,30]
[393317834,1762463505101,-150.0,0.00041644,30]
[393317835,1762463505128,-150.0,0.00041644,30]
[393317836,1762463505156,-176.91,0.00041662,30]
[393317837,1762463505183,-176.91,0.00041662,30]
[393317838,1762463505212,-2408.22,0.00041662,30]
[393317839,1762463505241,-20000.0,0.000419,120]
[393317840,1762463505268,-206.71,0.00042,30]
[393317841,1762463505296,-200.0,0.00042,120]
[393317842,1762463505322,-311.47746275,0.00042,120]
[393317843,1762463505349,-308.15477649,0.00042,120]
[393317844,1762463505374,-503.84875274,0.00042,30]
[393317845,1762463505400,-392.72204714,0.00042,30]
[393317846,1762463505427,-425.23637757,0.00042,30]
[393317847,1762463505453,-427.10322003,0.00042,120]
[393317848,1762463505480,-686.77876426,0.00042,120]
[393317849,1762463505506,-447.43263253,0.00042,30]
[393317850,1762463505535,-1607.93,0.00042062,120]
[393317851,1762463505563,-181.55543942,0.00042121,120]
[393317852,1762463505590,-477.87911524,0.000424,120]
[393317853,1762463505619,-353.75,0.00042466,30]
[393317854,1762463505650,-257.49397083,0.000427,90]
[393317855,1762463505677,-150.0,0.00042758,30]
[393317856,1762463505704,-150.0,0.00042758,30]
[393317857,1762463505730,-150.0,0.00042758,30]
[393317858,1762463505757,-20000.0,0.000429,120]
[393317859,1762463505785,-1288.52175446,0.000429,120]
[393317860,1762463505812,-211.0,0.0004295,30]
[393317861,1762463505839,-273.83405214,0.00043,120]
[393317862,1762463505866,-967.70629741,0.00043,120]
[393317863,1762463505892,-1325.10245263,0.00043,120]
[393317864,1762463505918,-150.0,0.00043,120]
[393317865,1762463505945,-165.49258279,0.00043,120]
[393317866,1762463505973,-5115.2081417,0.00043,120]
[393317867,1762463506001,-198.0,0.00043,90]
[393317868,1762463506029,-3384.20864952,0.000431,120]
[393317869,1762463506058,-200.0,0.00043101,120]
[393317870,1762463506086,-519.70547653,0.0004314,120]
[393317871,1762463506113,-521.859,0.0004322,30]
[393317872,1762463506141,-702.52069766,0.0004328,120]
[393317873,1762463506168,-479.12027479,0.000433,120]
[393317874,1762463506196,-2000.0,0.00043369,120]
[393317875,1762463506224,-351.73714215,0.00043562,120]
[393317876,1762463506252,-191.86,0.00043613,60]
[393317877,1762463506282,-231.76223639,0.000437,120]
[393317878,1762463506309,-524.29,0.000438,120]
[393317879,1762463506336,-617.68746275,0.000438,30]
[393317880,1762463506363,-385.6826737,0.000438,120]
[393317881,1762463506391,-999.0,0.00043835,120]
[393317882,1762463506418,-150.0,0.00043835,120]
[393317883,1762463506444,-500.0,0.00043836,30]
[393317884,1762463506471,-18800.6,0.000439,120]
[393317885,1762463506499,-847.06023386,0.000439,120]
[393317886,1762463506649,-1466.61273276,0.00043987,120]
[393317887,1762463506678,-300.0,0.00044,120]
[393317888,1762463506705,-1004.05986967,0.00044,120]
[393317889,1762463506733,-248.37752394,0.00044,120]
[393317890,1762463506764,-400.0,0.00044,120]
[393317891,1762463506792,-374.285652,0.00044,57]
[393317892,1762463506820,-150.66,0.00044127,30]
[393317893,1762463506847,-158.34261106,0.0004425,120]
[393317894,1762463506874,-185.29589006,0.00044384,30]
[393317895,1762463506900,-150.0,0.00044384,30]
[393317896,1762463506927,-150.0,0.00044384,30]
[393317897,1762463506955,-150.0,0.00044384,30]
[393317898,1762463506982,-150.0,0.00044384,30]
[393317899,1762463507010,-150.0,0.00044384,30]
[393317900,1762463507037,-189.55385851,0.00044384,30]
[393317901,1762463507064,-150.0,0.00044384,30]
[393317902,1762463507091,-150.0,0.00044384,30]
[393317903,1762463507117,-150.0,0.00044384,30]
[393317904,1762463507144,-150.0,0.00044384,30]
[393317905,1762463507170,-150.0,0.00044384,30]
[393317906,1762463507196,-150.0,0.00044384,30]
[393317907,1762463507222,-150.0,0.00044384,30]
[393317908,1762463507250,-150.0,0.00044384,30]
[393317909,1762463507277,-164.21196366,0.00044384,30]
[393317910,1762463507304,-150.0,0.00044384,30]
[393317911,1762463507332,-150.0,0.00044384,30]
[393317912,1762463507360,-185.29589006,0.00044433,30]
[393317913,1762463507386,-189.55385851,0.00044433,30]
[393317914,1762463507413,-150.0,0.00044443,30]
[393317915,1762463507440,-150.0,0.00044444,30]
[393317916,1762463507467,-150.0,0.00044447,30]
[393317917,1762463507494,-150.0,0.00044448,30]
[393317918,1762463507521,-150.0,0.0004448,30]
[393317919,1762463507548,-185.29589006,0.00044483,30]
[393317920,1762463507578,-189.55385851,0.00044483,30]
[393317921,1762463507605,-523.55021497,0.000445,120]
[393317922,1762463507634,-150.0,0.00044502,30]
[393317923,1762463507660,-150.0,0.00044504,30]
[393317924,1762463507687,-150.0,0.00044505,30]
[393317925,1762463507713,-150.0,0.0004451,30]
[393317926,1762463507741,-150.0,0.00044513,30]
[393317927,1762463507769,-185.29589006,0.00044533,30]
[393317928,1762463507796,-189.55385851,0.00044533,30]
[393317929,1762463507823,-150.0,0.00044562,30]
[393317930,1762463507848,-150.0,0.00044566,30]
[393317931,1762463507874,-150.0,0.00044573,30]
[393317932,1762463507901,-150.0,0.00044577,30]
[393317933,1762463507928,-150.0,0.00044578,30]
[393317934,1762463507954,-150.0,0.00044581,30]
[393317935,1762463507981,-185.29589006,0.00044583,30]
[393317936,1762463508008,-189.55385851,0.00044583,30]